bitfinex/quotes_SOLUSD_20240605
["timestamp","ask_amount","ask_price","bid_price","bid_amount"]
[1717594296750,0.4,173.74,173.69,8.5197]
[1717594296949,2.5296,173.74,173.7,2.1301]
[1717594297273,2.5296,173.74,173.69,8.5196]
[1717594297474,0.4,173.74,173.68,2.1302]
[1717594297652,2.1297,173.73,173.66,20.0]
[1717594297969,2.5296,173.74,173.69,2.1302]
[1717594298267,2.5296,173.74,173.7,2.1301]
[1717594298481,2.5296,173.74,173.69,8.1521]
[1717594299026,2.1297,173.73,173.68,2.1303]
[1717594299148,2.5296,173.74,173.69,2.1302]
[1717594299346,2.1297,173.73,173.68,2.1302]
[1717594300446,0.4,173.74,173.69,2.1302]
[1717594300645,2.1298,173.73,173.69,2.1302]
[1717594300971,2.1298,173.73,173.66,24.2611]
[1717594300972,2.1298,173.72,173.68,2.1302]
[1717594301466,2.13,173.71,173.66,2.1305]
[1717594301773,2.1299,173.72,173.67,2.1304]
[1717594301971,2.1299,173.72,173.68,2.1303]
[1717594302273,2.1298,173.73,173.68,2.1303]
[1717594302666,2.1298,173.73,173.65,30.6534]
[1717594302667,2.1298,173.72,173.65,24.2613]
[1717594302877,2.1298,173.72,173.67,2.1304]
[1717594303568,2.13,173.71,173.66,2.1305]
[1717594303876,4.2602,173.7,173.64,2.1308]
[1717594304384,2.1302,173.69,173.64,2.1308]
[1717594304768,0.4,173.74,173.59,21.6718]
[1717594304965,2.13,173.71,173.66,2.1305]
[1717594305671,2.13,173.71,173.64,4.2615]
[1717594305672,4.2597,173.72,173.62,4.2621]
[1717594305872,2.1302,173.69,173.64,2.1307]
[1717594306373,2.1304,173.67,173.63,2.1309]
[1717594306574,2.1304,173.68,173.63,2.1309]
[1717594306959,2.1305,173.67,173.63,2.1309]
[1717594307158,2.1306,173.66,173.55,6.3143]
[1717594307466,2.1306,173.66,173.62,2.131]
[1717594307792,2.1305,173.67,173.62,2.131]
[1717594308285,2.1306,173.66,173.61,2.1311]
[1717594308493,4.2608,173.68,173.61,2.1311]
[1717594308675,2.1306,173.66,173.61,2.1311]
[1717594309484,2.1307,173.65,173.61,2.1311]
[1717594309680,2.1306,173.66,173.62,2.131]
[1717594309875,2.1305,173.67,173.62,2.131]
[1717594310074,2.1306,173.66,173.62,2.131]
[1717594310383,2.1305,173.67,173.62,2.131]
[1717594310688,2.1306,173.66,173.62,2.131]
[1717594310885,2.1306,173.66,173.61,2.1311]
[1717594313385,2.1307,173.65,173.61,2.1311]
[1717594314289,2.1306,173.66,173.61,2.1311]
[1717594314987,2.1306,173.66,173.62,2.131]
[1717594315191,2.1307,173.65,173.6,2.1312]
[1717594317000,2.1307,173.65,173.61,2.1312]
[1717594318305,2.1306,173.66,173.62,2.131]
[1717594318792,2.1306,173.66,173.61,2.1311]
[1717594319017,2.1307,173.65,173.61,2.1311]
[1717594320501,2.1308,173.64,173.59,2.1314]
[1717594320710,10.6535,173.65,173.58,2.1315]
[1717594321078,2.1309,173.63,173.58,2.1315]
[1717594321297,2.131,173.62,173.58,2.1315]
[1717594321485,2.131,173.63,173.59,2.1314]
[1717594321781,2.1311,173.62,173.57,2.1316]
[1717594322281,10.8228,173.67,173.59,2.1313]
[1717594322482,12.9522,173.68,173.6,2.1312]
[1717594322674,2.1309,173.64,173.59,2.1313]
[1717594322877,2.1309,173.63,173.59,2.1313]
[1717594323290,2.1309,173.64,173.59,2.1313]
[1717594323691,2.1309,173.63,173.59,2.1313]
[1717594324087,2.1309,173.63,173.58,2.1315]
[1717594324409,2.1309,173.63,173.59,2.1314]
[1717594324585,2.1308,173.64,173.59,2.1314]
[1717594325398,2.1308,173.64,173.6,2.1313]
[1717594325598,2.1308,173.64,173.59,2.1313]
[1717594326322,2.1306,173.66,173.58,6.3946]
[1717594326608,2.1305,173.67,173.62,2.131]
[1717594326790,2.1308,173.64,173.59,2.1313]
[1717594327508,2.1309,173.63,173.59,2.1313]
[1717594327805,2.1309,173.63,173.58,2.1315]
[1717594328293,6.3922,173.65,173.57,2.1316]
[1717594328496,4.4318,173.64,173.57,2.1316]
[1717594328806,4.4318,173.64,173.55,10.578]
[1717594328807,2.1311,173.62,173.58,2.1315]
[1717594329108,2.131,173.63,173.58,2.1315]
[1717594330004,2.131,173.63,173.59,2.1314]
[1717594330198,2.131,173.63,173.58,2.1315]
[1717594331786,2.1313,173.61,173.56,2.1317]
[1717594332008,2.1313,173.61,173.57,2.1316]
[1717594333512,2.1311,173.62,173.57,2.1316]
[1717594333711,6.393,173.63,173.52,10.6611]
[1717594333897,2.1314,173.6,173.55,2.1319]
[1717594335411,2.1312,173.61,173.56,2.1318]
[1717594336716,2.1313,173.6,173.56,2.1318]
[1717594336918,10.655,173.63,173.56,2.1318]
[1717594337104,2.1312,173.61,173.56,2.1318]
[1717594338817,10.96512931,173.66,173.56,10.6588]
[1717594339108,2.131,173.63,173.58,2.1315]
[1717594339311,2.1311,173.62,173.57,2.1316]
[1717594339503,2.1311,173.62,173.58,2.1315]
[1717594339812,2.1309,173.63,173.58,2.1314]
[1717594340032,2.1309,173.63,173.59,2.1314]
[1717594341902,2.131,173.62,173.58,2.1315]
[1717594342415,2.131,173.63,173.58,2.1315]
[1717594342718,2.131,173.63,173.59,2.1314]
[1717594342897,2.131,173.63,173.58,2.1315]
[1717594343214,2.131,173.62,173.58,2.1315]
[1717594343595,4.2614,173.65,173.58,2.1315]
[1717594343795,2.1311,173.62,173.58,2.1315]
[1717594344041,2.1312,173.61,173.57,2.1316]
[1717594344215,2.1312,173.61,173.56,2.1317]
[1717594344397,2.1312,173.61,173.57,2.1316]
[1717594345107,2.1311,173.62,173.57,2.1316]
[1717594345321,4.2619,173.63,173.57,2.1316]
[1717594345627,2.1313,173.61,173.57,2.1316]
[1717594346825,2.1313,173.61,173.56,2.1317]
[1717594347199,2.1313,173.61,173.57,2.1316]
[1717594347521,2.1311,173.62,173.57,2.1316]
[1717594347703,2.1311,173.62,173.58,2.1315]
[1717594347907,2.1312,173.61,173.57,2.1316]
[1717594348095,2.1314,173.6,173.55,2.1318]
[1717594348296,2.1315,173.59,173.55,2.1318]
[1717594348722,4.2624,173.61,173.55,2.1319]
[1717594348900,2.1315,173.59,173.55,2.1319]
[1717594349424,2.1315,173.58,173.54,2.132]
[1717594349613,2.1315,173.59,173.54,2.132]
[1717594350411,2.1315,173.59,173.55,2.1319]
[1717594351019,2.1317,173.57,173.52,2.1322]
[1717594351920,2.1317,173.57,173.51,6.7092]
[1717594352227,2.1317,173.57,173.53,2.1321]
[1717594352724,2.1316,173.58,173.53,2.1321]
[1717594354226,2.1317,173.57,173.53,2.1321]
[1717594354607,2.1317,173.57,173.52,2.1322]
[1717594354811,2.1317,173.57,173.53,2.1321]
[1717594355127,2.1316,173.58,173.53,2.1321]
[1717594355426,2.1317,173.57,173.53,2.1321]
[1717594355623,2.1317,173.57,173.51,0.4]
[1717594355624,2.1317,173.57,173.52,2.1322]
[1717594355808,2.1318,173.56,173.52,2.1322]
[1717594356527,2.1319,173.56,173.51,2.5324]
[1717594356720,24.9136,173.63,173.51,0.4]
[1717594356904,2.1315,173.58,173.54,2.1319]
[1717594357102,2.1315,173.58,173.53,2.1321]
[1717594357303,2.1317,173.57,173.53,2.1321]
[1717594357612,2.1317,173.57,173.52,2.1322]
[1717594357818,2.1317,173.57,173.53,2.1321]
[1717594358618,10.6567,173.6,173.54,2.132]
[1717594358619,2.1316,173.58,173.54,2.132]
[1717594359122,2.1315,173.59,173.54,2.132]
[1717594359332,2.1316,173.58,173.53,2.1321]
[1717594359828,2.1315,173.59,173.53,2.1321]
[1717594360027,2.1315,173.59,173.54,2.132]
[1717594360224,2.1315,173.59,173.53,2.1321]
[1717594360530,2.1316,173.58,173.53,2.1321]
[1717594361114,2.1315,173.59,173.54,2.132]
[1717594361314,2.1315,173.59,173.51,4.6647]
[1717594361726,2.1315,173.59,173.53,2.1321]
[1717594362021,2.1315,173.59,173.54,2.132]
[1717594363615,2.1315,173.58,173.53,2.1321]
[1717594365832,2.1315,173.59,173.54,2.132]
[1717594366828,2.1315,173.58,173.54,2.132]
[1717594367420,2.1315,173.58,173.53,2.1321]
[1717594368309,2.1315,173.58,173.54,2.132]
[1717594368728,4.2627,173.6,173.54,2.132]
[1717594369332,2.1315,173.59,173.54,2.132]
[1717594370328,2.1316,173.58,173.53,2.1321]
[1717594370526,2.1316,173.58,173.53,8.4376]
[1717594370730,2.1316,173.58,173.54,2.132]
[1717594370935,2.1311,173.62,173.57,2.1316]
[1717594371122,2.1312,173.61,173.57,2.1316]
[1717594371433,2.1311,173.62,173.57,2.1316]
[1717594371732,2.1311,173.62,173.58,2.1315]
[1717594371917,4.2619,173.63,173.56,8.5593]
[1717594372232,2.1312,173.61,173.56,8.5593]
[1717594373232,2.1312,173.61,173.57,2.1316]
[1717594373434,2.1311,173.62,173.58,2.1315]
[1717594373935,10.478,173.66,173.59,2.1314]
[1717594374135,4.4315,173.65,173.58,2.1315]
[1717594374336,2.1309,173.63,173.58,2.1315]
[1717594375241,2.131,173.62,173.58,2.1315]
[1717594376433,2.131,173.63,173.58,2.1315]
[1717594377140,2.131,173.62,173.58,2.1315]
[1717594377510,2.131,173.62,173.57,8.2668]
[1717594378023,2.1312,173.61,173.57,6.1352]
[1717594378230,2.1312,173.61,173.57,8.2668]
[1717594379645,2.1311,173.62,173.57,8.2668]
[1717594379943,2.1311,173.62,173.58,2.1315]
[1717594380726,2.1311,173.62,173.55,20.0]
[1717594381032,4.2623,173.62,173.55,26.3376]
[1717594381242,2.1312,173.61,173.56,2.1317]
[1717594381925,2.1312,173.61,173.57,2.1316]
[1717594382119,2.1311,173.62,173.58,2.1315]
[1717594382843,2.1311,173.62,173.57,2.1316]
[1717594383056,2.1311,173.62,173.58,2.1315]
[1717594383428,2.1309,173.63,173.56,4.2635]
[1717594383730,2.1309,173.63,173.59,2.1314]
[1717594384041,2.1309,173.63,173.58,8.432]
[1717594384445,2.1311,173.62,173.58,8.432]
[1717594384627,2.131,173.63,173.59,2.1314]
[1717594384826,2.1309,173.64,173.59,2.1313]
[1717594385021,2.1309,173.63,173.59,8.7568]
[1717594385331,2.131,173.62,173.59,6.6255]
[1717594385741,2.131,173.62,173.57,2.1316]
[1717594385930,2.131,173.62,173.57,8.3815]
[1717594386435,2.1312,173.61,173.57,8.3815]
[1717594386745,2.1311,173.62,173.58,2.1315]
[1717594388055,2.131,173.63,173.59,2.1314]
[1717594388846,0.34,173.67,173.6,2.1313]
[1717594388847,2.1308,173.64,173.6,2.1313]
[1717594389333,2.1311,173.62,173.58,2.1315]
[1717594389733,2.131,173.63,173.59,2.1314]
[1717594390050,2.1309,173.64,173.6,2.1313]
[1717594390845,2.1309,173.64,173.59,8.6651]
[1717594391049,2.1309,173.63,173.59,8.6651]
[1717594392643,2.131,173.62,173.58,2.1315]
[1717594392832,2.131,173.62,173.57,2.1316]
[1717594393231,2.131,173.63,173.59,2.1314]
[1717594393729,2.1309,173.64,173.59,2.1314]
[1717594394065,2.1309,173.63,173.58,2.1315]
[1717594394630,2.1311,173.62,173.58,2.1315]
[1717594394929,2.1315,173.59,173.55,8.5023]
[1717594395129,2.1313,173.6,173.55,2.1319]
[1717594395329,2.1313,173.6,173.56,2.1318]
[1717594396342,2.1313,173.6,173.55,2.1318]
[1717594397659,2.1313,173.6,173.56,2.1318]
[1717594398758,2.1313,173.6,173.55,2.1319]
[1717594399068,2.1315,173.59,173.55,2.1319]
[1717594399252,0.17,173.58,173.51,2.5323]
[1717594399560,2.132,173.54,173.51,0.4]
[1717594399856,2.132,173.55,173.51,0.4]
[1717594400060,2.132,173.55,173.51,2.5324]
[1717594400243,2.132,173.55,173.51,0.4]
[1717594401338,2.132,173.55,173.51,2.5324]
[1717594402062,2.132,173.55,173.51,0.4]
[1717594402959,2.132,173.55,173.51,2.5324]
[1717594403354,2.132,173.55,173.51,0.4]
[1717594403559,2.132,173.54,173.51,0.4]
[1717594404441,2.132,173.55,173.51,2.5324]
[1717594404958,2.132,173.55,173.51,0.4]
[1717594406465,2.132,173.54,173.51,0.4]
[1717594406759,2.1319,173.55,173.51,2.5324]
[1717594407065,2.132,173.54,173.51,0.4]
[1717594408141,2.132,173.55,173.51,0.4]
[1717594408561,2.132,173.55,173.51,2.5324]
[1717594409451,2.1314,173.59,173.55,2.1319]
[1717594409663,2.1315,173.59,173.55,2.1318]
[1717594409859,10.6555,173.62,173.54,6.6042]
[1717594410056,19.1799,173.62,173.55,2.1318]
[1717594410259,2.1314,173.6,173.56,2.1318]
[1717594410665,2.1314,173.59,173.55,2.1319]
[1717594410846,2.1314,173.59,173.55,8.2585]
[1717594411373,2.1313,173.6,173.56,2.1318]
[1717594411553,2.1314,173.59,173.56,2.1318]
[1717594411866,2.1314,173.6,173.56,2.1318]
[1717594412057,2.1314,173.6,173.56,8.229]
[1717594413855,2.1314,173.59,173.56,6.0972]
[1717594414469,2.1313,173.6,173.56,8.229]
[1717594414773,2.1314,173.59,173.56,6.0972]
[1717594416087,2.1313,173.6,173.56,8.2289]
[1717594417076,2.1313,173.6,173.57,2.1316]
[1717594417276,2.1313,173.6,173.56,8.2289]
[1717594419379,2.1314,173.59,173.56,8.2289]
[1717594421192,2.1314,173.6,173.56,8.2289]
[1717594422986,2.1314,173.59,173.56,8.2289]
[1717594423284,2.1314,173.59,173.56,6.0972]
[1717594423472,2.1314,173.59,173.56,8.229]
[1717594424285,2.1313,173.6,173.56,8.229]
[1717594424585,2.1314,173.59,173.56,8.229]
[1717594425085,2.1313,173.6,173.56,8.229]
[1717594426893,2.1313,173.6,173.57,2.1317]
[1717594427592,2.1313,173.6,173.57,6.6063]
[1717594427889,2.1314,173.59,173.57,6.6063]
[1717594428986,2.1313,173.6,173.57,6.6063]
[1717594429194,2.1314,173.59,173.57,6.6063]
[1717594429394,2.1314,173.59,173.57,6.53709058]
[1717594429691,2.1314,173.59,173.56,2.1317]
[1717594430293,10.656,173.61,173.55,2.1318]
[1717594430601,4.2633,173.58,173.49,15.037]
[1717594430785,2.132,173.55,173.52,2.1323]
[1717594430991,2.1317,173.57,173.53,2.1321]
[1717594431185,2.1317,173.57,173.54,2.132]
[1717594431495,2.1317,173.57,173.5,4.2649]
[1717594431496,2.1317,173.57,173.53,2.1321]
[1717594434498,2.1317,173.57,173.53,8.6683]
[1717594435501,2.1318,173.56,173.53,6.5362]
[1717594435875,2.1318,173.56,173.53,2.1321]
[1717594436081,2.1317,173.57,173.53,2.1321]
[1717594436887,2.1317,173.57,173.53,8.6708]
[1717594437089,2.1317,173.57,173.54,2.132]
[1717594437301,2.1316,173.58,173.54,8.4703]
[1717594439398,2.1317,173.57,173.54,6.3383]
[1717594440910,2.1316,173.58,173.54,8.4702]
[1717594441217,2.1314,173.6,173.56,8.5225]
[1717594441913,2.1314,173.59,173.56,6.3907]
[1717594442290,2.1314,173.59,173.55,2.1318]
[1717594442703,2.1314,173.59,173.56,2.1318]
[1717594442893,2.1314,173.6,173.56,2.1318]
[1717594443607,2.1314,173.6,173.56,8.596]
[1717594443904,2.1314,173.59,173.56,6.4642]
[1717594444114,2.1314,173.59,173.55,2.1319]
[1717594444692,2.1314,173.59,173.55,8.4554]
[1717594444889,2.1313,173.61,173.54,26.4426]
[1717594445118,2.1311,173.62,173.58,2.1315]
[1717594445318,4.2619,173.63,173.58,2.1315]
[1717594445525,2.1311,173.62,173.58,2.1315]
[1717594445716,4.2619,173.63,173.57,2.1316]
[1717594445717,2.1312,173.61,173.57,2.1316]
[1717594446089,2.1312,173.61,173.58,2.1315]
[1717594446320,2.1311,173.62,173.58,2.1315]
[1717594447621,2.1312,173.61,173.57,8.3827]
[1717594447825,2.1313,173.6,173.57,8.3827]
[1717594448312,2.1313,173.6,173.56,2.1317]
[1717594448887,2.1312,173.61,173.57,8.6012]
[1717594449091,2.1312,173.61,173.58,2.1315]
[1717594449291,2.1311,173.62,173.58,2.1315]
[1717594449816,2.1311,173.62,173.58,8.5944]
[1717594450223,2.1312,173.61,173.58,8.5944]
[1717594450399,2.1312,173.61,173.58,6.4629]
[1717594450601,2.1313,173.6,173.56,8.5946]
[1717594451024,10.6556,173.62,173.56,2.1317]
[1717594451228,10.6556,173.62,173.54,4.2639]
[1717594451518,10.6556,173.62,173.55,2.1318]
[1717594451519,2.1315,173.59,173.55,2.1318]
[1717594452625,2.1315,173.58,173.55,2.1318]
[1717594452927,2.1315,173.59,173.55,2.1318]
[1717594453093,2.1315,173.59,173.56,2.1318]
[1717594453812,2.1315,173.59,173.55,2.1319]
[1717594454207,2.1313,173.6,173.57,2.1316]
[1717594454517,2.1313,173.6,173.56,8.6012]
[1717594454893,2.1313,173.6,173.56,2.1317]
[1717594455318,2.1313,173.6,173.57,2.1317]
[1717594455706,2.1313,173.6,173.56,2.1317]
[1717594456596,2.1313,173.6,173.57,2.1316]
[1717594457520,2.1313,173.6,173.56,2.1317]
[1717594457914,2.1314,173.59,173.56,2.1317]
[1717594458231,2.1316,173.58,173.54,2.132]
[1717594458406,2.1316,173.58,173.55,2.1319]
[1717594458901,2.1315,173.59,173.55,2.1319]
[1717594459221,2.1315,173.58,173.55,2.1319]
[1717594459400,2.1315,173.59,173.55,2.1319]
[1717594460321,2.1315,173.59,173.56,2.1318]
[1717594460819,2.1315,173.58,173.55,2.1318]
[1717594461020,2.1315,173.59,173.55,2.1318]
[1717594461213,2.1315,173.59,173.53,4.2643]
[1717594461214,2.1315,173.59,173.56,2.1318]
[1717594461721,2.1315,173.59,173.55,2.1318]
[1717594461926,2.1315,173.59,173.56,2.1318]
[1717594462230,2.1314,173.6,173.56,2.1318]
[1717594463196,2.1314,173.6,173.57,2.1316]
[1717594464535,2.1312,173.61,173.57,2.1316]
[1717594464828,2.1313,173.6,173.57,2.1316]
[1717594465617,2.1313,173.6,173.56,2.1317]
[1717594466025,2.1313,173.6,173.57,2.1316]
[1717594466409,2.1313,173.6,173.56,2.1317]
[1717594467021,2.1313,173.6,173.57,2.1316]
[1717594468022,2.1313,173.6,173.56,2.1317]
[1717594468425,2.1316,173.58,173.55,2.1319]
[1717594468629,10.656,173.61,173.55,2.1319]
[1717594468824,2.1315,173.59,173.55,2.1319]
[1717594469137,2.1315,173.59,173.56,2.1318]
[1717594469628,2.1315,173.59,173.55,2.1318]
[1717594469830,2.1315,173.58,173.54,2.132]
[1717594470014,2.1316,173.58,173.54,2.132]
[1717594470330,2.1316,173.58,173.55,2.1319]
[1717594470931,2.1315,173.59,173.55,2.1319]
[1717594471832,2.1315,173.58,173.55,2.1319]
[1717594472923,2.1317,173.58,173.54,2.1319]
[1717594473232,2.1317,173.57,173.54,2.1319]
[1717594473605,2.1316,173.58,173.55,2.1319]
[1717594476838,2.1316,173.58,173.54,2.132]
[1717594477133,10.6567,173.6,173.54,2.132]
[1717594477322,2.1316,173.58,173.54,2.132]
[1717594477625,2.1317,173.57,173.54,2.132]
[1717594478843,2.1316,173.58,173.54,2.132]
[1717594479412,0.17,173.59,173.51,0.4]
[1717594479633,2.1319,173.55,173.52,2.1322]
[1717594480130,2.1318,173.56,173.53,2.1321]
[1717594481245,2.1317,173.57,173.54,2.132]
[1717594481427,2.1316,173.58,173.54,2.132]
[1717594481617,19.1823,173.6,173.54,2.132]
[1717594481818,2.1316,173.58,173.54,2.132]
[1717594482551,2.1317,173.57,173.54,2.132]
[1717594482732,2.1317,173.57,173.53,2.1321]
[1717594483443,2.1317,173.57,173.54,2.132]
[1717594483646,2.1317,173.57,173.53,2.1321]
[1717594484743,14.9195,173.6,173.51,19.5916]
[1717594484744,0.17,173.58,173.51,0.4]
[1717594485044,4.2638,173.56,173.51,0.4]
[1717594485231,2.1321,173.54,173.51,0.4]
[1717594486042,2.132,173.55,173.51,2.5324]
[1717594486540,4.2638,173.56,173.51,2.5324]
[1717594486749,2.132,173.55,173.51,2.5324]
[1717594487338,2.132,173.55,173.51,2.5323]
[1717594487540,2.132,173.55,173.52,2.1323]
[1717594488743,2.1318,173.56,173.52,2.1323]
[1717594489039,4.4334,173.57,173.51,2.5323]
[1717594489040,2.132,173.54,173.51,2.5323]
[1717594489430,2.132,173.55,173.51,2.5323]
[1717594490245,2.132,173.54,173.51,2.5323]
[1717594490431,2.132,173.54,173.51,2.5324]
[1717594491739,4.2637,173.56,173.51,2.5324]
[1717594492439,2.1321,173.54,173.51,2.5324]
[1717594492740,2.132,173.55,173.51,2.5324]
[1717594492941,2.132,173.55,173.52,2.1323]
[1717594494453,2.132,173.55,173.51,2.5323]
[1717594495152,2.132,173.55,173.52,2.1323]
[1717594495445,2.1322,173.53,173.51,0.4]
[1717594496953,2.1321,173.54,173.51,0.4]
[1717594497953,2.132,173.54,173.51,0.4]
[1717594498256,2.1321,173.53,173.51,0.4]
[1717594498860,2.1321,173.54,173.51,0.4]
[1717594499353,2.1322,173.53,173.51,0.4]
[1717594502064,2.1323,173.52,173.51,0.4]
[1717594503142,2.1321,173.54,173.51,0.4]
[1717594503347,12.7911,173.56,173.51,0.4]
[1717594503548,2.1322,173.53,173.51,0.4]
[1717594505066,2.1321,173.54,173.51,2.5324]
[1717594505262,2.1318,173.56,173.51,6.5801]
[1717594507159,2.1321,173.53,173.51,0.4]
[1717594508165,2.1321,173.54,173.51,0.4]
[1717594508553,2.1322,173.53,173.51,0.4]
[1717594510765,2.1321,173.54,173.51,0.4]
[1717594510954,2.1322,173.53,173.51,0.4]
[1717594511156,4.2639,173.55,173.51,0.4]
[1717594511359,2.1322,173.53,173.51,0.4]
[1717594511850,2.1323,173.52,173.51,0.4]
[1717594512057,66.663,173.52,173.51,0.4]
[1717594512768,2.133,173.47,173.44,2.1332]
[1717594512963,2.1328,173.48,173.44,2.1332]
[1717594513473,2.1327,173.49,173.45,2.1331]
[1717594513769,2.1328,173.48,173.44,2.1332]
[1717594516264,2.1328,173.48,173.45,2.1331]
[1717594516463,2.1327,173.49,173.45,2.1331]
[1717594516679,2.1325,173.51,173.47,2.1328]
[1717594516847,2.1325,173.51,173.48,2.1328]
[1717594517167,2.1324,173.51,173.47,2.1328]
[1717594517368,2.1325,173.5,173.47,2.1328]
[1717594518344,2.1325,173.5,173.46,2.133]
[1717594518744,2.1325,173.5,173.47,2.1329]
[1717594518970,2.1324,173.51,173.47,2.1329]
[1717594519469,2.1324,173.51,173.48,2.1328]
[1717594520469,2.1324,173.51,173.45,4.2662]
[1717594520470,64.67752429,173.61,173.53,2.1321]
[1717594520668,2.1317,173.58,173.54,2.132]
[1717594520846,4.2628,173.6,173.53,2.1321]
[1717594520847,2.1317,173.57,173.53,2.1321]
[1717594521363,2.1318,173.56,173.53,2.1321]
[1717594522169,2.1318,173.56,173.52,2.1322]
[1717594523562,2.1319,173.55,173.52,2.1322]
[1717594523874,2.132,173.54,173.5,2.1325]
[1717594524451,19.1855,173.57,173.51,2.1324]
[1717594524650,2.132,173.55,173.51,2.1324]
[1717594524863,2.1321,173.54,173.5,2.1325]
[1717594525169,2.1321,173.54,173.51,2.1324]
[1717594525773,2.1321,173.54,173.5,2.1325]
[1717594526857,2.1321,173.54,173.51,2.1324]
[1717594528176,2.1323,173.52,173.46,18.8765]
[1717594528356,2.1323,173.52,173.48,2.1327]
[1717594528678,2.1324,173.51,173.47,2.1328]
[1717594528852,0.17,173.53,173.46,4.2659]
[1717594529181,2.1322,173.53,173.49,2.1326]
[1717594529673,2.1323,173.52,173.49,2.1326]
[1717594530056,2.1323,173.52,173.48,2.1327]
[1717594530254,2.1323,173.52,173.49,2.1326]
[1717594530859,2.1322,173.53,173.49,2.1326]
[1717594531175,2.1323,173.52,173.49,2.1326]
[1717594531662,2.1322,173.53,173.49,2.1326]
[1717594531851,2.1322,173.53,173.5,2.1325]
[1717594532057,2.1321,173.54,173.5,2.1325]
[1717594532577,2.1321,173.53,173.5,2.1325]
[1717594532765,4.264,173.55,173.5,2.1325]
[1717594533074,2.1322,173.53,173.5,2.1325]
[1717594533879,2.1323,173.52,173.49,2.1326]
[1717594534193,10.6598,173.55,173.42,17.4356002]
[1717594534194,2.1324,173.51,173.45,4.2661]
[1717594534352,2.1324,173.51,173.47,2.1328]
[1717594534758,2.1324,173.51,173.48,2.1327]
[1717594534957,12.7922,173.55,173.49,2.1326]
[1717594535192,2.1323,173.52,173.49,2.1326]
[1717594535479,2.1323,173.52,173.48,2.1327]
[1717594537889,2.1324,173.51,173.48,2.1327]
[1717594538098,2.1323,173.52,173.48,2.1327]
[1717594538388,2.1324,173.51,173.47,2.1328]
[1717594538690,2.1325,173.5,173.46,2.1329]
[1717594538871,2.1325,173.51,173.47,2.1329]
[1717594539073,2.1323,173.52,173.48,2.1327]
[1717594539268,2.1324,173.51,173.47,2.1328]
[1717594539589,2.1323,173.52,173.48,2.1328]
[1717594539778,2.1324,173.51,173.47,2.1329]
[1717594540279,2.1323,173.52,173.48,2.1327]
[1717594540681,2.1324,173.51,173.47,2.1328]
[1717594540988,12.9629,173.54,173.46,2.133]
[1717594540989,2.1325,173.5,173.46,2.133]
[1717594541393,2.1326,173.49,173.45,2.1331]
[1717594542889,0.34,173.5,173.42,0.8152002]
[1717594543093,2.1329,173.47,173.43,2.1333]
[1717594543495,2.1328,173.48,173.44,2.1333]
[1717594544404,2.1329,173.47,173.43,2.1333]
[1717594544769,2.1328,173.48,173.44,2.1332]
[1717594544996,2.1328,173.48,173.43,2.1333]
[1717594545687,2.1329,173.47,173.43,2.1333]
[1717594546087,2.1329,173.47,173.43,2.1334]
[1717594547400,2.1331,173.46,173.42,2.9487002]
[1717594548700,2.1331,173.45,173.42,0.8152002]